fUSD/lending_fUSD_20240211
["ID","MTS","AMOUNT","RATE_DAILY","PERIOD"]
[313745591,1707655856830,-6797.18,0.0003589,2]
[313745592,1707655856841,-1383.58,0.0003589,2]
[313745593,1707655856851,-500.0,0.0003589,2]
[313745594,1707655856861,-1565.71,0.0003589,2]
[313745595,1707655856870,-500.0,0.0003589,2]
[313745596,1707655856880,-500.0,0.0003589,2]
[313745597,1707655856889,-523.5561106,0.0003589,2]
[313745598,1707655856899,-500.0,0.0003589,2]
[313745599,1707655856908,-500.0,0.0003589,2]
[313745600,1707655856917,-500.0,0.0003589,2]
[313745601,1707655856926,-3979.74,0.0003589,2]
[313745602,1707655856936,-508.70779714,0.0003589,2]
[313745603,1707655856945,-665.46,0.0003589,2]
[313745604,1707655856954,-1872.64,0.0003589,2]
[313745605,1707655856963,-522.00455131,0.0003589,2]
[313745606,1707655856973,-500.0,0.0003589,2]
[313745607,1707655856982,-512.85924287,0.0003589,2]
[313745608,1707655856991,-648.18,0.0003589,2]
[313745609,1707655857000,-10000.0,0.0003589,2]
[313745610,1707655857010,-667.71,0.0003589,2]
[313745611,1707655857019,-500.0,0.0003589,2]
[313745612,1707655857028,-5727.68,0.0003589,2]
[313745613,1707655857038,-2938.74,0.0003589,2]
[313745614,1707655857049,-500.0,0.0003589,2]
[313745615,1707655857058,-500.0,0.0003589,2]
[313745616,1707655857067,-1920.35,0.0003589,2]
[313745617,1707655857077,-500.0,0.0003589,2]
[313745618,1707655857086,-519.12168845,0.0003589,2]
[313745619,1707655857095,-500.0,0.0003589,2]
[313745620,1707655857105,-739.69,0.0003589,2]
[313745621,1707655857114,-500.0,0.0003589,2]
[313745622,1707655857123,-1732.31,0.0003589,2]
[313745623,1707655857133,-495.0,0.0003589,2]
[313745624,1707655857142,-526.81094844,0.0003589,2]
[313745625,1707655857152,-2203.12,0.0003589,2]
[313745626,1707655857162,-500.0,0.0003589,2]
[313745627,1707655857171,-500.0,0.0003589,2]
[313745628,1707655857181,-656.12,0.0003589,2]
[313745629,1707655857191,-1414.44,0.0003589,2]
[313745630,1707655857201,-679.31,0.0003589,2]
[313745631,1707655857211,-500.0,0.0003589,2]
[313745632,1707655857221,-665.44,0.0003589,2]
[313745633,1707655857292,-500.0,0.0003589,2]
[313745634,1707655857302,-500.0,0.0003589,2]
[313745635,1707655857311,-1501.1,0.0003589,2]
[313745636,1707655857321,-500.0,0.0003589,2]
[313745637,1707655857337,-500.0,0.0003589,2]
[313745638,1707655857357,-500.0,0.0003589,2]
[313745639,1707655857378,-721.83,0.0003589,2]
[313745640,1707655857388,-500.0,0.0003589,2]
[313745641,1707655857398,-500.0,0.0003589,2]
[313745642,1707655857407,-453.82414782,0.0003589,2]
[313745643,1707655857416,-1723.66,0.0003589,2]
[313745644,1707655857425,-522.57025831,0.0003589,2]
[313745645,1707655857435,-507.68084043,0.0003589,2]
[313745646,1707655857444,-500.0,0.0003589,2]
[313745647,1707655857453,-546.62,0.0003589,2]
[313745648,1707655857463,-1954.15,0.0003589,2]
[313745649,1707655857471,-2677.04,0.0003589,2]
[313745650,1707655857481,-601.06,0.0003589,2]
[313745651,1707655857490,-284.37367778,0.0003589,2]
[313745652,1707655857499,-518.17,0.0003589,2]
[313745653,1707655857508,-500.0,0.0003589,2]
[313745654,1707655857518,-500.0,0.0003589,2]
[313745655,1707655857528,-503.57114519,0.0003589,2]
[313745656,1707655857539,-500.0,0.0003589,2]
[313745657,1707655857548,-515.52276104,0.0003589,2]
[313745658,1707655857557,-500.0,0.0003589,2]
[313745659,1707655857567,-529.22324093,0.0003589,2]
[313745660,1707655857576,-500.0,0.0003589,2]
[313745661,1707655857585,-2867.3,0.0003589,2]
[313745662,1707655857594,-513.41,0.0003589,2]
[313745663,1707655857603,-500.0,0.0003589,2]
[313745664,1707655857612,-500.0,0.0003589,2]
[313745665,1707655857621,-4468.21,0.0003589,2]
[313745666,1707655857630,-723.25,0.0003589,2]
[313745667,1707655857639,-1144.28,0.0003589,2]
[313745668,1707655857648,-500.0,0.0003589,2]
[313745669,1707655857657,-788.55,0.0003589,2]
[313745670,1707655857667,-500.0,0.0003589,2]
[313745671,1707655857676,-500.0,0.0003589,2]
[313745672,1707655857686,-500.0,0.0003589,2]
[313745673,1707655857694,-2001.83,0.0003589,2]
[313745674,1707655857703,-500.0,0.0003589,2]
[313745675,1707655857713,-500.0,0.0003589,2]
[313745676,1707655857723,-500.0,0.0003589,2]
[313745677,1707655857732,-500.0,0.0003589,2]
[313745678,1707655857742,-511.23554369,0.0003589,2]
[313745679,1707655857752,-733.79,0.0003589,2]
[313745680,1707655857762,-516.79975168,0.0003589,2]
[313745681,1707655857771,-500.0,0.0003589,2]
[313745682,1707655857780,-500.0,0.0003589,2]
[313745683,1707655857789,-500.0,0.0003589,2]
[313745684,1707655857798,-500.0,0.0003589,2]
[313745685,1707655857807,-500.0,0.0003589,2]
[313745686,1707655857816,-1907.33,0.0003589,2]
[313745687,1707655857826,-500.0,0.0003589,2]
[313745688,1707655857835,-907.55,0.0003589,2]
[313745689,1707655857844,-644.52,0.0003589,2]
[313745690,1707655857853,-500.0,0.0003589,2]
[313745691,1707655857862,-1326.34,0.0003589,2]
[313745692,1707655857872,-500.0,0.0003589,2]
[313745693,1707655857881,-500.0,0.0003589,2]
[313745694,1707655857890,-500.0,0.0003589,2]
[313745695,1707655857899,-991.59,0.0003589,2]
[313745696,1707655857908,-500.0,0.0003589,2]
[313745697,1707655857917,-514.40822385,0.0003589,2]
[313745698,1707655857926,-500.0,0.0003589,2]
[313745699,1707655857936,-1052.56,0.0003589,2]
[313745700,1707655857945,-500.0,0.0003589,2]
[313745701,1707655857954,-500.0,0.0003589,2]
[313745702,1707655857963,-500.0,0.0003589,2]
[313745703,1707655857972,-500.0,0.0003589,2]
[313745704,1707655857982,-519.36605399,0.0003589,2]
[313745705,1707655857991,-723.54,0.0003589,2]
[313745706,1707655858000,-500.0,0.0003589,2]
[313745707,1707655858009,-641.18,0.0003589,2]
[313745708,1707655858018,-8278.92,0.0003589,2]
[313745709,1707655858028,-2066.91,0.0003589,2]
[313745710,1707655858037,-522.92,0.0003589,2]
[313745711,1707655858046,-550.00803038,0.0003589,2]
[313745712,1707655858056,-250.85915028,0.0003589,2]
[313745713,1707655858065,-500.0,0.0003589,2]
[313745714,1707655858074,-614.62,0.0003589,2]
[313745715,1707655858083,-551.31,0.0003589,2]
[313745716,1707655858092,-736.55,0.0003589,2]
[313745717,1707655858102,-925.72,0.0003589,2]
[313745718,1707655858111,-500.0,0.0003589,2]
[313745719,1707655858121,-518.87365707,0.0003589,2]
[313745720,1707655858130,-500.0,0.0003589,2]
[313745721,1707655858139,-1859.64,0.0003589,2]
[313745722,1707655858150,-540.28,0.0003589,2]
[313745723,1707655858160,-3223.09,0.0003589,2]
[313745724,1707655858170,-513.83,0.0003589,2]
[313745725,1707655858179,-241.05852851,0.0003589,2]
[313745726,1707655858190,-663.56,0.0003589,2]
[313745727,1707655858199,-2294.82,0.0003589,2]
[313745728,1707655858208,-500.0,0.0003589,2]
[313745729,1707655858217,-500.0,0.0003589,2]
[313745730,1707655858227,-500.0,0.0003589,2]
[313745731,1707655858237,-500.0,0.0003589,2]
[313745732,1707655858246,-377.45971582,0.0003589,2]
[313745733,1707655858255,-500.0,0.0003589,2]
[313745734,1707655858266,-500.0,0.0003589,2]
[313745735,1707655858275,-2876.92,0.0003589,2]
[313745736,1707655858284,-1868.25,0.0003589,2]
[313745737,1707655858293,-958.72,0.0003589,2]
[313745738,1707655858304,-1000.0,0.0003589,2]
[313745739,1707655858314,-592.78,0.0003589,2]
[313745740,1707655858323,-500.0,0.0003589,2]
[313745741,1707655858333,-1088.59,0.0003589,2]
[313745742,1707655858343,-511.94549452,0.0003589,2]
[313745743,1707655858353,-500.0,0.0003589,2]
[313745744,1707655858364,-500.0,0.0003589,2]
[313745745,1707655858373,-515.2947549,0.0003589,2]
[313745746,1707655858383,-667.31,0.0003589,2]
[313745747,1707655858393,-602.67,0.0003589,2]
[313745748,1707655858403,-592.04,0.0003589,2]
[313745749,1707655858413,-500.0,0.0003589,2]
[313745750,1707655858422,-500.0,0.0003589,2]
[313745751,1707655858431,-519.67209713,0.0003589,2]
[313745752,1707655858441,-500.0,0.0003589,2]
[313745753,1707655858450,-500.0,0.0003589,2]
[313745754,1707655858458,-505.07161298,0.0003589,2]
[313745755,1707655858468,-3452.52,0.0003589,2]
[313745756,1707655858478,-500.0,0.0003589,2]
[313745757,1707655858488,-500.0,0.0003589,2]
[313745758,1707655858497,-991.03,0.0003589,2]
[313745759,1707655858507,-2499.25,0.0003589,2]
[313745760,1707655858516,-680.48,0.0003589,2]
[313745761,1707655858526,-686.77,0.0003589,2]
[313745762,1707655858536,-1305.96,0.0003589,2]
[313745763,1707655858545,-500.0,0.0003589,2]
[313745764,1707655858554,-500.0,0.0003589,2]
[313745765,1707655858564,-500.0,0.0003589,2]
[313745766,1707655858573,-500.0,0.0003589,2]
[313745767,1707655858582,-512.13624982,0.0003589,2]
[313745768,1707655858593,-500.0,0.0003589,2]
[313745769,1707655858602,-500.0,0.0003589,2]
[313745770,1707655858611,-1469.51,0.0003589,2]
[313745771,1707655858622,-500.0,0.0003589,2]
[313745772,1707655858632,-500.3,0.0003589,2]
[313745773,1707655858641,-2404.82,0.0003589,2]
[313745774,1707655858650,-537.97522825,0.0003589,2]
[313745775,1707655858660,-500.0,0.0003589,2]
[313745776,1707655858670,-500.0,0.0003589,2]
[313745777,1707655858679,-829.21,0.0003589,2]
[313745778,1707655858691,-500.0,0.0003589,2]
[313745779,1707655858700,-2849.48,0.0003589,2]
[313745780,1707655858709,-3714.25,0.0003589,2]
[313745781,1707655858718,-524.65061132,0.0003589,2]
[313745782,1707655858727,-500.0,0.0003589,2]
[313745783,1707655858738,-500.0,0.0003589,2]
[313745784,1707655858747,-500.0,0.0003589,2]
[313745785,1707655858758,-500.0,0.0003589,2]
[313745786,1707655858770,-500.0,0.0003589,2]
[313745787,1707655858779,-275.19079439,0.0003589,2]
[313745788,1707655858788,-1101.23,0.0003589,2]
[313745789,1707655858797,-532.72,0.0003589,2]
[313745790,1707655858806,-500.0,0.0003589,2]
[313745791,1707655858816,-589.36,0.0003589,2]
[313745792,1707655858825,-500.0,0.0003589,2]
[313745793,1707655858837,-834.28,0.0003589,2]
[313745794,1707655858847,-500.0,0.0003589,2]
[313745795,1707655858856,-1225.05,0.0003589,2]
[313745796,1707655858866,-500.0,0.0003589,2]
[313745797,1707655858876,-3291.86,0.0003589,2]
[313745798,1707655858886,-500.0,0.0003589,2]
[313745799,1707655858896,-1405.4,0.0003589,2]
[313745800,1707655858907,-753.17,0.0003589,2]
[313745801,1707655858916,-500.0,0.0003589,2]
[313745802,1707655858926,-500.0,0.0003589,2]
[313745803,1707655858937,-500.0,0.0003589,2]
[313745804,1707655858946,-500.0,0.0003589,2]
[313745805,1707655858955,-500.0,0.0003589,2]
[313745806,1707655858964,-603.7,0.0003589,2]
[313745807,1707655858973,-500.0,0.0003589,2]
[313745808,1707655858982,-500.0,0.0003589,2]
[313745809,1707655858991,-2262.98,0.0003589,2]
[313745810,1707655859001,-565.73,0.0003589,2]
[313745811,1707655859010,-517.01424832,0.0003589,2]
[313745812,1707655859019,-500.0,0.0003589,2]
[313745813,1707655859029,-500.0,0.0003589,2]
[313745814,1707655859038,-500.0,0.0003589,2]
[313745815,1707655859048,-557.69102332,0.0003589,2]
[313745816,1707655859057,-5266.11,0.0003589,2]
[313745817,1707655859066,-500.0,0.0003589,2]
[313745818,1707655859076,-500.0,0.0003589,2]
[313745819,1707655859086,-500.0,0.0003589,2]
[313745820,1707655859095,-500.0,0.0003589,2]
[313745821,1707655859105,-500.0,0.0003589,2]
[313745822,1707655859114,-3328.22,0.0003589,2]
[313745823,1707655859124,-500.0,0.0003589,2]
[313745824,1707655859133,-500.0,0.0003589,2]
[313745825,1707655859144,-643.18,0.0003589,2]
[313745826,1707655859153,-656.9,0.0003589,2]
[313745827,1707655859163,-500.0,0.0003589,2]
[313745828,1707655859173,-1193.72,0.0003589,2]
[313745829,1707655859182,-500.0,0.0003589,2]
[313745830,1707655859191,-500.0,0.0003589,2]
[313745831,1707655859200,-1971.73,0.0003589,2]
[313745832,1707655859209,-500.0,0.0003589,2]
[313745833,1707655859218,-538.37,0.0003589,2]
[313745834,1707655859227,-858.74,0.0003589,2]
[313745835,1707655859237,-500.0,0.0003589,2]
[313745836,1707655859247,-500.0,0.0003589,2]
[313745837,1707655859257,-500.0,0.0003589,2]
[313745838,1707655859266,-737.17,0.0003589,2]
[313745839,1707655859276,-520.89237807,0.0003589,2]
[313745840,1707655859286,-894.82,0.0003589,2]
[313745841,1707655859296,-512.63,0.0003589,2]
[313745842,1707655859305,-824.07,0.0003589,2]
[313745843,1707655859315,-638.32,0.0003589,2]
[313745844,1707655859325,-500.0,0.0003589,2]
[313745845,1707655859336,-1724.35,0.0003589,2]
[313745846,1707655859346,-763.37,0.0003589,2]
[313745847,1707655859356,-500.0,0.0003589,2]
[313745848,1707655859366,-2594.72,0.0003589,2]
[313745849,1707655859375,-500.0,0.0003589,2]
[313745850,1707655859384,-1791.67,0.0003589,2]
[313745851,1707655859393,-188.11607834,0.0003589,2]
[313745852,1707655859403,-514.35305546,0.0003589,2]
[313745853,1707655859413,-500.0,0.0003589,2]
[313745854,1707655859423,-500.0,0.0003589,2]
[313745855,1707655859432,-608.28019298,0.0003589,2]
[313745856,1707655859442,-500.0,0.0003589,2]
[313745857,1707655859453,-743.26,0.0003589,2]
[313745858,1707655859463,-538.42791982,0.0003589,2]
[313745859,1707655859472,-620.36,0.0003589,2]
[313745860,1707655859482,-2220.74,0.0003589,2]
[313745861,1707655859491,-1761.67,0.0003589,2]
[313745862,1707655859501,-1582.98,0.0003589,2]
[313745863,1707655859511,-818.36,0.0003589,2]
[313745864,1707655859522,-652.93,0.0003589,2]
[313745865,1707655859533,-702.45,0.0003589,2]
[313745866,1707655859542,-500.0,0.0003589,2]
[313745867,1707655859552,-500.0,0.0003589,2]
[313745868,1707655859562,-2117.79,0.0003589,2]
[313745869,1707655859572,-500.0,0.0003589,2]
[313745870,1707655859581,-500.0,0.0003589,2]
[313745871,1707655859590,-1088.76,0.0003589,2]
[313745872,1707655859600,-500.0,0.0003589,2]
[313745873,1707655859609,-591.62,0.0003589,2]
[313745874,1707655859620,-2424.91,0.0003589,2]
[313745875,1707655859631,-500.0,0.0003589,2]
[313745876,1707655859640,-500.0,0.0003589,2]
[313745877,1707655859649,-3252.72,0.0003589,2]
[313745878,1707655859659,-630.45,0.0003589,2]
[313745879,1707655859669,-843.16,0.0003589,2]
[313745880,1707655859679,-500.0,0.0003589,2]
[313745881,1707655859689,-3054.65,0.0003589,2]
[313745882,1707655859699,-2769.56,0.0003589,2]
[313745883,1707655859709,-500.0,0.0003589,2]
[313745884,1707655859719,-500.0,0.0003589,2]
[313745885,1707655859729,-500.0,0.0003589,2]
[313745886,1707655859740,-500.0,0.0003589,2]
[313745887,1707655859750,-1784.55,0.0003589,2]
[313745888,1707655859760,-1352.16,0.0003589,2]
[313745889,1707655859771,-4083.37,0.0003589,2]
[313745890,1707655859783,-1145.25,0.0003589,2]
[313745891,1707655859793,-610.99,0.0003589,2]
[313745892,1707655859803,-510.6402854,0.0003589,2]
[313745893,1707655859813,-500.0,0.0003589,2]
[313745894,1707655859823,-500.0,0.0003589,2]
[313745895,1707655859833,-500.0,0.0003589,2]
[313745896,1707655859842,-500.0,0.0003589,2]
[313745897,1707655859852,-3291.31,0.0003589,2]
[313745898,1707655859862,-500.0,0.0003589,2]
[313745899,1707655859871,-572.06,0.0003589,2]
[313745900,1707655859881,-512.06475879,0.0003589,2]
[313745901,1707655859891,-1305.68,0.0003589,2]
[313745902,1707655859900,-500.0,0.0003589,2]
[313745903,1707655859910,-1033.23,0.0003589,2]
[313745904,1707655859920,-799.44,0.0003589,2]
[313745905,1707655859930,-500.0,0.0003589,2]
[313745906,1707655859941,-314.19774444,0.0003589,2]
[313745907,1707655859951,-500.0,0.0003589,2]
[313745908,1707655859960,-640.39,0.0003589,2]
[313745909,1707655859970,-3827.85,0.0003589,2]
[313745910,1707655859980,-500.0,0.0003589,2]
[313745911,1707655859990,-500.0,0.0003589,2]
[313745912,1707655859999,-736.87,0.0003589,2]
[313745913,1707655860009,-521.14170005,0.0003589,2]
[313745914,1707655860020,-500.0,0.0003589,2]
[313745915,1707655860032,-504.84,0.0003589,2]
[313745916,1707655860042,-9440.41,0.0003589,2]
[313745917,1707655860051,-1587.67,0.0003589,2]
[313745918,1707655860061,-500.0,0.0003589,2]
[313745919,1707655860071,-846.76,0.0003589,2]
[313745920,1707655860081,-500.0,0.0003589,2]
[313745921,1707655860091,-513.32828512,0.0003589,2]
[313745922,1707655860101,-1278.31,0.0003589,2]
[313745923,1707655860111,-500.0,0.0003589,2]
[313745924,1707655860121,-2174.51,0.0003589,2]
[313745925,1707655860130,-4621.43,0.0003589,2]
[313745926,1707655860140,-2513.42,0.0003589,2]
[313745927,1707655860150,-1000.0,0.0003589,120]
[313745928,1707655860160,-150.0,0.00035905,2]
[313745929,1707655860170,-257.24754816,0.00035998,4]
[313745930,1707655860180,-405.61194202,0.00035998,4]
[313745931,1707655860192,-404.16621303,0.00035998,4]
[313745932,1707655860201,-312.05290095,0.00035999,4]
[313745933,1707655860210,-453.0,0.00036,2]
[313745934,1707655860222,-299.91078439,0.00036,4]
[313745935,1707655860231,-7905.071658,0.00036,2]
[313745936,1707655860241,-2715.305411,0.00036,2]
[313745937,1707655860250,-1939.503864,0.00036,2]
[313745938,1707655860260,-1551.603092,0.00036,2]
[313745939,1707655860270,-1163.702319,0.00036,2]
[313745940,1707655860280,-500.0,0.00036027,6]
[313745941,1707655860290,-151.50624563,0.00036036,2]
[313745942,1707655860300,-612.16941063,0.00036051,2]
[313745943,1707655860310,-200.0,0.00036074,3]
[313745944,1707655860321,-5115.05957011,0.00036093,2]
[313745945,1707655860332,-898.00849664,0.00036093,2]
[313745946,1707655860342,-150.0,0.00036163,2]
[313745947,1707655860351,-150.0,0.00036163,2]
[313745948,1707655860361,-528.18,0.00036164,2]
[313745949,1707655860371,-509.31,0.00036164,2]
[313745950,1707655860380,-547.62,0.00036164,2]
[313745951,1707655860389,-522.18,0.00036164,2]
[313745952,1707655860399,-672.08,0.00036164,2]
[313745953,1707655860408,-500.0,0.00036164,2]
[313745954,1707655860419,-500.0,0.00036164,2]
[313745955,1707655860428,-528.15335001,0.00036164,2]
[313745956,1707655860438,-500.0,0.00036164,2]
[313745957,1707655860448,-549.46,0.00036164,2]
[313745958,1707655860457,-523.8490655,0.00036164,2]
[313745959,1707655860467,-582.83422854,0.00036164,2]
[313745960,1707655860476,-500.0,0.00036164,2]
[313745961,1707655860486,-500.0,0.00036164,2]
[313745962,1707655860496,-500.0,0.00036164,2]
[313745963,1707655860507,-500.0,0.00036164,2]
[313745964,1707655860517,-500.0,0.00036164,2]
[313745965,1707655860526,-500.0,0.00036164,2]
[313745966,1707655860535,-500.0,0.00036164,2]
[313745967,1707655860545,-500.0,0.00036164,2]
[313745968,1707655860554,-500.0,0.00036164,2]
[313745969,1707655860564,-676.55,0.00036164,2]
[313745970,1707655860574,-424.58465835,0.00036164,2]
[313745971,1707655860583,-500.0,0.00036164,2]
[313745972,1707655860593,-870.33,0.00036164,2]
[313745973,1707655860602,-500.0,0.00036164,2]
[313745974,1707655860611,-565.02,0.00036164,2]
[313745975,1707655860620,-538.89846793,0.00036164,2]
[313745976,1707655860630,-653.29,0.00036164,2]
[313745977,1707655860639,-500.0,0.00036164,2]
[313745978,1707655860649,-509.94648369,0.00036164,2]
[313745979,1707655860658,-500.0,0.00036164,2]
[313745980,1707655860668,-500.0,0.00036164,2]
[313745981,1707655860678,-500.0,0.00036164,2]
[313745982,1707655860688,-561.72,0.00036164,2]
[313745983,1707655860697,-203.03832891,0.00036164,2]
[313745984,1707655860707,-500.0,0.00036164,2]
[313745985,1707655860717,-500.0,0.00036164,2]
[313745986,1707655860726,-500.0,0.00036164,2]
[313745987,1707655860736,-500.0,0.00036164,2]
[313745988,1707655860746,-671.32,0.00036164,2]
[313745989,1707655860756,-500.0,0.00036164,2]
[313745990,1707655860766,-500.0,0.00036164,2]
[313745991,1707655860775,-500.0,0.00036164,2]
[313745992,1707655860785,-523.51294078,0.00036164,2]
[313745993,1707655860796,-500.0,0.00036164,2]
[313745994,1707655860805,-500.0,0.00036164,2]
[313745995,1707655860815,-500.0,0.00036164,2]
[313745996,1707655860825,-500.0,0.00036164,2]
[313745997,1707655860835,-500.0,0.00036164,2]
[313745998,1707655860845,-500.0,0.00036164,2]
[313745999,1707655860855,-578.19,0.00036164,2]
[313746000,1707655860866,-500.0,0.00036164,2]
[313746001,1707655860876,-500.0,0.00036164,2]
[313746002,1707655860886,-500.0,0.00036164,2]
[313746003,1707655860895,-500.0,0.00036164,2]
[313746004,1707655860905,-500.0,0.00036164,2]
[313746005,1707655860916,-500.0,0.00036164,2]
[313746006,1707655860926,-333.97450588,0.00036164,2]
[313746007,1707655860937,-500.0,0.00036164,2]
[313746008,1707655861126,-500.0,0.00036164,2]
[313746009,1707655861136,-733.94,0.00036164,2]
[313746010,1707655861145,-500.0,0.00036164,2]
[313746011,1707655861155,-538.66945593,0.00036164,2]
[313746012,1707655861164,-500.0,0.00036164,2]
[313746013,1707655861174,-641.94525363,0.00036164,2]
[313746014,1707655861183,-500.0,0.00036164,2]
[313746015,1707655861193,-500.0,0.00036164,2]
[313746016,1707655861202,-500.0,0.00036164,2]
[313746017,1707655861213,-500.0,0.00036164,2]
[313746018,1707655861223,-500.0,0.00036164,2]
[313746019,1707655861233,-500.0,0.00036164,2]
[313746020,1707655861243,-500.0,0.00036164,2]
[313746021,1707655861252,-500.0,0.00036164,2]
[313746022,1707655861261,-500.0,0.00036164,2]
[313746023,1707655861271,-514.3,0.00036164,2]
[313746024,1707655861280,-500.0,0.00036164,2]
[313746025,1707655861289,-1261.23,0.00036164,2]
[313746026,1707655861299,-500.0,0.00036164,2]
[313746027,1707655861309,-808.4,0.00036164,2]
[313746028,1707655861318,-500.0,0.00036164,2]
[313746029,1707655861327,-500.0,0.00036164,2]
[313746030,1707655861338,-563.72,0.00036164,2]
[313746031,1707655861348,-1119.73,0.00036164,2]
[313746032,1707655861357,-500.0,0.00036164,2]
[313746033,1707655861366,-674.6,0.00036164,2]
[313746034,1707655861375,-500.0,0.00036164,2]
[313746035,1707655861386,-555.2107174,0.00036164,2]
[313746036,1707655861396,-1094.72,0.00036164,2]
[313746037,1707655861405,-1388.25,0.00036164,2]
[313746038,1707655861415,-500.0,0.00036164,2]
[313746039,1707655861424,-517.07458691,0.00036164,2]
[313746040,1707655861433,-560.6,0.00036164,2]
[313746041,1707655861444,-500.0,0.00036164,2]
[313746042,1707655861453,-519.51785977,0.00036164,2]
[313746043,1707655861462,-484.22666815,0.00036164,2]
[313746044,1707655861471,-500.0,0.00036164,2]
[313746045,1707655861479,-1374.95,0.00036164,2]
[313746046,1707655861488,-500.0,0.00036164,2]
[313746047,1707655861497,-500.0,0.00036164,2]
[313746048,1707655861507,-879.46,0.00036164,2]
[313746049,1707655861516,-500.0,0.00036164,2]
[313746050,1707655861525,-602.4,0.00036164,2]
[313746051,1707655861534,-500.0,0.00036164,2]
[313746052,1707655861543,-1319.63,0.00036164,2]
[313746053,1707655861552,-500.0,0.00036164,2]
[313746054,1707655861562,-634.74,0.00036164,2]
[313746055,1707655861571,-639.93,0.00036164,2]
[313746056,1707655861580,-981.93,0.00036164,2]
[313746057,1707655861590,-1000.0,0.00036164,7]
[313746058,1707655861599,-500.0,0.00036164,2]
[313746059,1707655861608,-500.0,0.00036164,2]
[313746060,1707655861617,-544.68,0.00036164,2]
[313746061,1707655861626,-773.34,0.00036164,2]
[313746062,1707655861635,-529.31,0.00036164,2]
[313746063,1707655861644,-500.0,0.00036164,2]
[313746064,1707655861653,-500.0,0.00036164,2]
[313746065,1707655861662,-500.0,0.00036164,2]
[313746066,1707655861671,-988.16,0.00036164,2]
[313746067,1707655861681,-994.82,0.00036164,2]
[313746068,1707655861692,-533.52,0.00036164,2]
[313746069,1707655861702,-500.0,0.00036164,2]
[313746070,1707655861713,-671.02,0.00036164,2]
[313746071,1707655861723,-926.35,0.00036164,2]
[313746072,1707655861735,-500.0,0.00036164,2]
[313746073,1707655861745,-885.55,0.00036164,2]
[313746074,1707655861757,-699.95,0.00036164,2]
[313746075,1707655861767,-701.19,0.00036164,2]
[313746076,1707655861777,-500.0,0.00036164,2]
[313746077,1707655861786,-1310.37,0.00036164,2]
[313746078,1707655861796,-500.0,0.00036164,2]
[313746079,1707655861805,-1371.84,0.00036164,2]
[313746080,1707655861816,-521.94,0.00036164,2]
[313746081,1707655861825,-500.0,0.00036164,2]
[313746082,1707655861835,-1150.02,0.00036164,2]
[313746083,1707655861844,-650.15,0.00036164,2]
[313746084,1707655861854,-500.0,0.00036164,2]
[313746085,1707655861863,-1101.17,0.00036164,2]
[313746086,1707655861872,-500.0,0.00036164,2]
[313746087,1707655861881,-995.05,0.00036164,2]
[313746088,1707655861891,-500.0,0.00036164,2]
[313746089,1707655861900,-500.0,0.00036164,2]
[313746090,1707655861909,-500.0,0.00036164,2]